{"text_format":"3","workbook":"xlsx","n_sheets":14,"sheets":["Tippek","Összesítés","Jan.","Febr.","Márc.","Ápr.","Máj.","Jún.","Júl.","Sug.","Szept.","Okt.","Nov.","Dec."],"not_rendered":{"charts":1,"defined_names":27},"read":"whole","date_system":"1900"}

{"sheet":"Tippek","index":0,"n_rows":18,"n_cols":1,"rows_kept":18}
["SABLONTIPPEK"]
["Lehet egyszerűen váltani a kiadási trendeket összesítő munkalap és a kiadások havi részletezései között?"]
["Ha gyorsan meg szeretné nyitni egy adott hónap kiadásait, kattintson a hozzá tartozó navigációs hivatkozásra a diagram fölött, például a Jan. navigációs hivatkozásra a B2 cellában. Ha ezután vissza szeretne lépni a Kiadási trendek munkalapra, kattintson az Összesítés navigációs hivatkozásra a D1 cellában. "]
["A tippeket tartalmazó munkalapra az összesítési munkalap N2 celláját választva léphet vissza. A havi részletező munkalapokon ehhez az E1 cellára kell kattintania."]
["Hogyan adhatok hozzá új kiadástípust a kiadásösszesítéshez, vagy új havi kiadásokat?"]
["A diagram alatt található kiadásösszesítés és az egyes hónapok kiadásainak részletezése Excel-táblázatban található. Az Excel-táblázatokba az alábbi módon vehet fel új sorokat:"]
[{"$f":"ROW(A1)&\". Ha a táblázat nem tartalmaz összesítő sort, kezdjen el gépelni a táblázat alatt, amely automatikusan bővülni fog az Enter vagy a Tab billentyű lenyomásakor.\"","v":"1. Ha a táblázat nem tartalmaz összesítő sort, kezdjen el gépelni a táblázat alatt, amely automatikusan bővülni fog az Enter vagy a Tab billentyű lenyomásakor."}]
[{"$f":"ROW(A2)&\". Helyezze a kurzort az összesítő sor feletti utolsó cellába, például az utolsó kiadás összegéhez, majd nyomja le a Tab billentyűt.\"","v":"2. Helyezze a kurzort az összesítő sor feletti utolsó cellába, például az utolsó kiadás összegéhez, majd nyomja le a Tab billentyűt."}]
[{"$f":"ROW(A3)&\". Kattintson a jobb gombbal a táblázatra, a megjelenő menüben mutasson a „Beszúrás” pontra, és kattintson a „Táblázatsorok felülre” vagy a „Táblázatsorok alulra” parancsra.\"","v":"3. Kattintson a jobb gombbal a táblázatra, a megjelenő menüben mutasson a „Beszúrás” pontra, és kattintson a „Táblázatsorok felülre” vagy a „Táblázatsorok alulra” parancsra."}]
[{"$f":"ROW(A4)&\". Helyezze az egérmutatót a táblázat jobb alsó sarkában megjelenő méretezőpontra, és húzza a pontot lefelé a rendelkezésre álló táblázatsorok számának növeléséhez.\"","v":"4. Helyezze az egérmutatót a táblázat jobb alsó sarkában megjelenő méretezőpontra, és húzza a pontot lefelé a rendelkezésre álló táblázatsorok számának növeléséhez."}]
["Adja meg a kiadást az Összesítés munkalap Kiadásösszesítés táblázatának Kiadások oszlopában."]
["Vegye fel az egyes kiadástípusok kiadási összegét arra a havi munkalapra, amelyre a kiadás vonatkozik."]
["például: Az „1. kiadás” januártól júniusig és decemberben fordul elő. "]
[{"$f":"ROW(A1)&\". Az „1. kiadás” elemet (a kiadástípus címét) az Összesítés munkalap Kiadásösszesítés táblázatának Kiadás oszolopában adhatja meg.\"","v":"1. Az „1. kiadás” elemet (a kiadástípus címét) az Összesítés munkalap Kiadásösszesítés táblázatának Kiadás oszolopában adhatja meg."}]
[{"$f":"ROW(A2)&\". Írja be a kiadás összegét a megfelelő havi munkalapba az összes olyan hónapnál, amelyben a kiadás előfordult.\"","v":"2. Írja be a kiadás összegét a megfelelő havi munkalapba az összes olyan hónapnál, amelyben a kiadás előfordult."}]
[{"$f":"ROW(A3)&\". Az Összesítés munkalapon megadott kiadástípus létrehoz egy kategórialistát az egyes hónapok munkalapjának Kategória oszlopában.\"","v":"3. Az Összesítés munkalapon megadott kiadástípus létrehoz egy kategórialistát az egyes hónapok munkalapjának Kategória oszlopában."}]
[{"$f":"ROW(A4)&\". A Kategória oszlopban lévő kategórialistával kiválaszthatja a megfelelő kiadástípust a beírt kiadásösszeghez.\"","v":"4. A Kategória oszlopban lévő kategórialistával kiválaszthatja a megfelelő kiadástípust a beírt kiadásösszeghez."}]
[{"$f":"ROW(A5)&\". Ha szeretne új típusú kiadást megadni bármely hónapban, adjon hozzá egy új sort a Kiadásösszesítés táblázathoz az Összesítés munkalapon, majd adja meg a kiadás kívánt adatait annak a hónapnak a munkalapján, amelyben a kiadás előfordult.\"","v":"5. Ha szeretne új típusú kiadást megadni bármely hónapban, adjon hozzá egy új sort a Kiadásösszesítés táblázathoz az Összesítés munkalapon, majd adja meg a kiadás kívánt adatait annak a hónapnak a munkalapján, amelyben a kiadás előfordult."}]

{"sheet":"Összesítés","index":1,"n_rows":10,"n_cols":15,"rows_kept":10}
["KIADÁSI TRENDEK"]
[null,"Jan.","Febr.","Márc.","Ápr.","Máj.","Jún.","Júl.","Aug.","Szept.","Okt.","Nov.","Dec.","Tippek"]
[]
["Kiadások","Jan.","Febr.","Márc.","Ápr.","Máj.","Jún.","Júl.","Aug.","Szept.","Okt.","Nov.","Dec.","Összeg","Trend"]
["1. kiadás",{"$f":"SUMIFS(JanKiad[Összeg],JanKiad[Kategória],Kiadásösszesítés[Kiadások])","v":{"v":33,"d":"33.00"}},{"$f":"SUMIFS(FebKiad[Összeg],FebKiad[Kategória],Kiadásösszesítés[Kiadások])","v":{"v":375,"d":"375.00"}},{"$f":"SUMIFS(MájKiad[Összeg],MájKiad[Kategória],Kiadásösszesítés[Kiadások])","v":{"v":375,"d":"375.00"}},{"$f":"SUMIFS(ÁprKiad[Összeg],ÁprKiad[Kategória],Kiadásösszesítés[Kiadások])","v":{"v":45,"d":"45.00"}},{"$f":"SUMIFS(MájKiad[Összeg],MájKiad[Kategória],Kiadásösszesítés[Kiadások])","v":{"v":375,"d":"375.00"}},{"$f":"SUMIFS(JúnKiad[Összeg],JúnKiad[Kategória],Kiadásösszesítés[Kiadások])","v":{"v":201,"d":"201.00"}},{"$f":"SUMIFS(JúlKiad[Összeg],JúlKiad[Kategória],Kiadásösszesítés[Kiadások])","v":{"v":0,"d":"0.00"}},{"$f":"SUMIFS(AugKiad[Összeg],AugKiad[Kategória],Kiadásösszesítés[Kiadások])","v":{"v":0,"d":"0.00"}},{"$f":"SUMIFS(SzeptKiad[Összeg],SzeptKiad[Kategória],Kiadásösszesítés[Kiadások])","v":{"v":0,"d":"0.00"}},{"$f":"SUMIFS(OktKiad[Összeg],OktKiad[Kategória],Kiadásösszesítés[Kiadások])","v":{"v":0,"d":"0.00"}},{"$f":"SUMIFS(NovKiad[Összeg],NovKiad[Kategória],Kiadásösszesítés[Kiadások])","v":{"v":0,"d":"0.00"}},{"$f":"SUMIFS(DecKiad[Összeg],DecKiad[Kategória],Kiadásösszesítés[Kiadások])","v":{"v":201,"d":"201.00"}},{"$f":"SUM(Kiadásösszesítés[[#This Row],[Jan.]:[Dec.]])","v":{"v":1605,"d":"1,605.00"}}]
["2. kiadás",{"$f":"SUMIFS(JanKiad[Összeg],JanKiad[Kategória],Kiadásösszesítés[Kiadások])","v":{"v":238,"d":"238.00"}},{"$f":"SUMIFS(FebKiad[Összeg],FebKiad[Kategória],Kiadásösszesítés[Kiadások])","v":{"v":238,"d":"238.00"}},{"$f":"SUMIFS(MájKiad[Összeg],MájKiad[Kategória],Kiadásösszesítés[Kiadások])","v":{"v":111,"d":"111.00"}},{"$f":"SUMIFS(ÁprKiad[Összeg],ÁprKiad[Kategória],Kiadásösszesítés[Kiadások])","v":{"v":123,"d":"123.00"}},{"$f":"SUMIFS(MájKiad[Összeg],MájKiad[Kategória],Kiadásösszesítés[Kiadások])","v":{"v":111,"d":"111.00"}},{"$f":"SUMIFS(JúnKiad[Összeg],JúnKiad[Kategória],Kiadásösszesítés[Kiadások])","v":{"v":98,"d":"98.00"}},{"$f":"SUMIFS(JúlKiad[Összeg],JúlKiad[Kategória],Kiadásösszesítés[Kiadások])","v":{"v":0,"d":"0.00"}},{"$f":"SUMIFS(AugKiad[Összeg],AugKiad[Kategória],Kiadásösszesítés[Kiadások])","v":{"v":0,"d":"0.00"}},{"$f":"SUMIFS(SzeptKiad[Összeg],SzeptKiad[Kategória],Kiadásösszesítés[Kiadások])","v":{"v":0,"d":"0.00"}},{"$f":"SUMIFS(OktKiad[Összeg],OktKiad[Kategória],Kiadásösszesítés[Kiadások])","v":{"v":0,"d":"0.00"}},{"$f":"SUMIFS(NovKiad[Összeg],NovKiad[Kategória],Kiadásösszesítés[Kiadások])","v":{"v":0,"d":"0.00"}},{"$f":"SUMIFS(DecKiad[Összeg],DecKiad[Kategória],Kiadásösszesítés[Kiadások])","v":{"v":440,"d":"440.00"}},{"$f":"SUM(Kiadásösszesítés[[#This Row],[Jan.]:[Dec.]])","v":{"v":1359,"d":"1,359.00"}}]
["3. kiadás",{"$f":"SUMIFS(JanKiad[Összeg],JanKiad[Kategória],Kiadásösszesítés[Kiadások])","v":{"v":110,"d":"110.00"}},{"$f":"SUMIFS(FebKiad[Összeg],FebKiad[Kategória],Kiadásösszesítés[Kiadások])","v":{"v":110,"d":"110.00"}},{"$f":"SUMIFS(MájKiad[Összeg],MájKiad[Kategória],Kiadásösszesítés[Kiadások])","v":{"v":333,"d":"333.00"}},{"$f":"SUMIFS(ÁprKiad[Összeg],ÁprKiad[Kategória],Kiadásösszesítés[Kiadások])","v":{"v":125,"d":"125.00"}},{"$f":"SUMIFS(MájKiad[Összeg],MájKiad[Kategória],Kiadásösszesítés[Kiadások])","v":{"v":333,"d":"333.00"}},{"$f":"SUMIFS(JúnKiad[Összeg],JúnKiad[Kategória],Kiadásösszesítés[Kiadások])","v":{"v":122,"d":"122.00"}},{"$f":"SUMIFS(JúlKiad[Összeg],JúlKiad[Kategória],Kiadásösszesítés[Kiadások])","v":{"v":0,"d":"0.00"}},{"$f":"SUMIFS(AugKiad[Összeg],AugKiad[Kategória],Kiadásösszesítés[Kiadások])","v":{"v":0,"d":"0.00"}},{"$f":"SUMIFS(SzeptKiad[Összeg],SzeptKiad[Kategória],Kiadásösszesítés[Kiadások])","v":{"v":0,"d":"0.00"}},{"$f":"SUMIFS(OktKiad[Összeg],OktKiad[Kategória],Kiadásösszesítés[Kiadások])","v":{"v":0,"d":"0.00"}},{"$f":"SUMIFS(NovKiad[Összeg],NovKiad[Kategória],Kiadásösszesítés[Kiadások])","v":{"v":0,"d":"0.00"}},{"$f":"SUMIFS(DecKiad[Összeg],DecKiad[Kategória],Kiadásösszesítés[Kiadások])","v":{"v":122,"d":"122.00"}},{"$f":"SUM(Kiadásösszesítés[[#This Row],[Jan.]:[Dec.]])","v":{"v":1255,"d":"1,255.00"}}]
["4. kiadás",{"$f":"SUMIFS(JanKiad[Összeg],JanKiad[Kategória],Kiadásösszesítés[Kiadások])","v":{"v":426,"d":"426.00"}},{"$f":"SUMIFS(FebKiad[Összeg],FebKiad[Kategória],Kiadásösszesítés[Kiadások])","v":{"v":84,"d":"84.00"}},{"$f":"SUMIFS(MájKiad[Összeg],MájKiad[Kategória],Kiadásösszesítés[Kiadások])","v":{"v":125,"d":"125.00"}},{"$f":"SUMIFS(ÁprKiad[Összeg],ÁprKiad[Kategória],Kiadásösszesítés[Kiadások])","v":{"v":426,"d":"426.00"}},{"$f":"SUMIFS(MájKiad[Összeg],MájKiad[Kategória],Kiadásösszesítés[Kiadások])","v":{"v":125,"d":"125.00"}},{"$f":"SUMIFS(JúnKiad[Összeg],JúnKiad[Kategória],Kiadásösszesítés[Kiadások])","v":{"v":187,"d":"187.00"}},{"$f":"SUMIFS(JúlKiad[Összeg],JúlKiad[Kategória],Kiadásösszesítés[Kiadások])","v":{"v":0,"d":"0.00"}},{"$f":"SUMIFS(AugKiad[Összeg],AugKiad[Kategória],Kiadásösszesítés[Kiadások])","v":{"v":0,"d":"0.00"}},{"$f":"SUMIFS(SzeptKiad[Összeg],SzeptKiad[Kategória],Kiadásösszesítés[Kiadások])","v":{"v":0,"d":"0.00"}},{"$f":"SUMIFS(OktKiad[Összeg],OktKiad[Kategória],Kiadásösszesítés[Kiadások])","v":{"v":0,"d":"0.00"}},{"$f":"SUMIFS(NovKiad[Összeg],NovKiad[Kategória],Kiadásösszesítés[Kiadások])","v":{"v":0,"d":"0.00"}},{"$f":"SUMIFS(DecKiad[Összeg],DecKiad[Kategória],Kiadásösszesítés[Kiadások])","v":{"v":187,"d":"187.00"}},{"$f":"SUM(Kiadásösszesítés[[#This Row],[Jan.]:[Dec.]])","v":{"v":1560,"d":"1,560.00"}}]
["5. kiadás",{"$f":"SUMIFS(JanKiad[Összeg],JanKiad[Kategória],Kiadásösszesítés[Kiadások])","v":{"v":54,"d":"54.00"}},{"$f":"SUMIFS(FebKiad[Összeg],FebKiad[Kategória],Kiadásösszesítés[Kiadások])","v":{"v":54,"d":"54.00"}},{"$f":"SUMIFS(MájKiad[Összeg],MájKiad[Kategória],Kiadásösszesítés[Kiadások])","v":{"v":33,"d":"33.00"}},{"$f":"SUMIFS(ÁprKiad[Összeg],ÁprKiad[Kategória],Kiadásösszesítés[Kiadások])","v":{"v":98,"d":"98.00"}},{"$f":"SUMIFS(MájKiad[Összeg],MájKiad[Kategória],Kiadásösszesítés[Kiadások])","v":{"v":33,"d":"33.00"}},{"$f":"SUMIFS(JúnKiad[Összeg],JúnKiad[Kategória],Kiadásösszesítés[Kiadások])","v":{"v":441,"d":"441.00"}},{"$f":"SUMIFS(JúlKiad[Összeg],JúlKiad[Kategória],Kiadásösszesítés[Kiadások])","v":{"v":0,"d":"0.00"}},{"$f":"SUMIFS(AugKiad[Összeg],AugKiad[Kategória],Kiadásösszesítés[Kiadások])","v":{"v":0,"d":"0.00"}},{"$f":"SUMIFS(SzeptKiad[Összeg],SzeptKiad[Kategória],Kiadásösszesítés[Kiadások])","v":{"v":0,"d":"0.00"}},{"$f":"SUMIFS(OktKiad[Összeg],OktKiad[Kategória],Kiadásösszesítés[Kiadások])","v":{"v":0,"d":"0.00"}},{"$f":"SUMIFS(NovKiad[Összeg],NovKiad[Kategória],Kiadásösszesítés[Kiadások])","v":{"v":0,"d":"0.00"}},{"$f":"SUMIFS(DecKiad[Összeg],DecKiad[Kategória],Kiadásösszesítés[Kiadások])","v":{"v":99,"d":"99.00"}},{"$f":"SUM(Kiadásösszesítés[[#This Row],[Jan.]:[Dec.]])","v":{"v":812,"d":"812.00"}}]
["Összeg",{"$f":"SUBTOTAL(109,Kiadásösszesítés[Jan.])","v":{"v":861,"d":"861.00"}},{"$f":"SUBTOTAL(109,Kiadásösszesítés[Febr.])","v":{"v":861,"d":"861.00"}},{"$f":"SUBTOTAL(109,Kiadásösszesítés[Márc.])","v":{"v":977,"d":"977.00"}},{"$f":"SUBTOTAL(109,Kiadásösszesítés[Ápr.])","v":{"v":817,"d":"817.00"}},{"$f":"SUBTOTAL(109,Kiadásösszesítés[Máj.])","v":{"v":977,"d":"977.00"}},{"$f":"SUBTOTAL(109,Kiadásösszesítés[Jún.])","v":{"v":1049,"d":"1,049.00"}},{"$f":"SUBTOTAL(109,Kiadásösszesítés[Júl.])","v":{"v":0,"d":"0.00"}},{"$f":"SUBTOTAL(109,Kiadásösszesítés[Aug.])","v":{"v":0,"d":"0.00"}},{"$f":"SUBTOTAL(109,Kiadásösszesítés[Szept.])","v":{"v":0,"d":"0.00"}},{"$f":"SUBTOTAL(109,Kiadásösszesítés[Okt.])","v":{"v":0,"d":"0.00"}},{"$f":"SUBTOTAL(109,Kiadásösszesítés[Nov.])","v":{"v":0,"d":"0.00"}},{"$f":"SUBTOTAL(109,Kiadásösszesítés[Dec.])","v":{"v":1049,"d":"1,049.00"}},{"$f":"SUBTOTAL(109,Kiadásösszesítés[Összeg])","v":{"v":6591,"d":"6,591.00"}}]

{"sheet":"Jan.","index":2,"n_rows":9,"n_cols":5,"rows_kept":9,"merged":[[0,0,0,2]]}
["JANUÁRI KIADÁSOK",null,null,"Összesítés","Tippek"]
["Dátum","Rendelésszám","Összeg","Kategória","Leírás"]
[{"$f":"DATE(YEAR(TODAY()),1,4)","v":"2017-01-04"},"A-12345",{"v":33,"d":"33.00"},"1. kiadás","Kellékek"]
[{"$f":"DATE(YEAR(TODAY()),1,5)","v":"2017-01-05"},"A-12346",{"v":238,"d":"238.00"},"2. kiadás"]
[null,null,{"v":342,"d":"342.00"},"4. kiadás"]
[null,null,{"v":110,"d":"110.00"},"3. kiadás"]
[null,null,{"v":84,"d":"84.00"},"4. kiadás"]
[null,null,{"v":54,"d":"54.00"},"5. kiadás"]
["Összeg",null,{"$f":"SUBTOTAL(109,JanKiad[Összeg])","v":{"v":861,"d":"861.00"}}]

{"sheet":"Febr.","index":3,"n_rows":9,"n_cols":5,"rows_kept":9,"merged":[[0,0,0,2]]}
["FEBRUÁRI KIADÁSOK",null,null,"Összesítés","Tippek"]
["Dátum","Rendelésszám","Összeg","Kategória","Leírás"]
[{"$f":"DATE(YEAR(TODAY()),2,3)","v":"2017-02-03"},"A-12345",{"v":33,"d":"33.00"},"1. kiadás","Kellékek"]
[{"$f":"DATE(YEAR(TODAY()),2,4)","v":"2017-02-04"},"A-12346",{"v":238,"d":"238.00"},"2. kiadás"]
[null,null,{"v":342,"d":"342.00"},"1. kiadás"]
[null,null,{"v":110,"d":"110.00"},"3. kiadás"]
[null,null,{"v":84,"d":"84.00"},"4. kiadás"]
[null,null,{"v":54,"d":"54.00"},"5. kiadás"]
["Összeg",null,{"$f":"SUBTOTAL(109,FebKiad[Összeg])","v":{"v":861,"d":"861.00"}}]

{"sheet":"Márc.","index":4,"n_rows":9,"n_cols":5,"rows_kept":9,"merged":[[0,0,0,2]]}
["MÁRCIUSI KIADÁSOK",null,null,"Összesítés","Tippek"]
["Dátum","Rendelésszám","Összeg","Kategória","Leírás"]
[{"$f":"DATE(YEAR(TODAY()),3,5)","v":"2017-03-05"},"A-12345",{"v":33,"d":"33.00"},"1. kiadás","Kellékek"]
[{"$f":"DATE(YEAR(TODAY()),3,6)","v":"2017-03-06"},"A-12346",{"v":238,"d":"238.00"},"2. kiadás"]
[null,null,{"v":55,"d":"55.00"},"5. kiadás"]
[null,null,{"v":110,"d":"110.00"},"3. kiadás"]
[null,null,{"v":84,"d":"84.00"},"4. kiadás"]
[null,null,{"v":54,"d":"54.00"},"5. kiadás"]
["Összeg",null,{"$f":"SUBTOTAL(109,MárcKiad[Összeg])","v":{"v":574,"d":"574.00"}}]

{"sheet":"Ápr.","index":5,"n_rows":9,"n_cols":5,"rows_kept":9,"merged":[[0,0,0,2]]}
["ÁPRILISI KIADÁSOK",null,null,"Összesítés","Tippek"]
["Dátum","Rendelésszám","Összeg","Kategória","Leírás"]
[{"$f":"DATE(YEAR(TODAY()),4,4)","v":"2017-04-04"},"A-12345",{"v":45,"d":"45.00"},"1. kiadás","Kellékek"]
[{"$f":"DATE(YEAR(TODAY()),4,8)","v":"2017-04-08"},"A-12346",{"v":123,"d":"123.00"},"2. kiadás"]
[null,null,{"v":342,"d":"342.00"},"4. kiadás"]
[null,null,{"v":125,"d":"125.00"},"3. kiadás"]
[null,null,{"v":84,"d":"84.00"},"4. kiadás"]
[null,null,{"v":98,"d":"98.00"},"5. kiadás"]
["Összeg",null,{"$f":"SUBTOTAL(109,ÁprKiad[Összeg])","v":{"v":817,"d":"817.00"}}]

{"sheet":"Máj.","index":6,"n_rows":9,"n_cols":5,"rows_kept":9,"merged":[[0,0,0,2]]}
["MÁJUSI KIADÁSOK",null,null,"Összesítés","Tippek"]
["Dátum","Rendelésszám","Összeg","Kategória","Leírás"]
[{"$f":"DATE(YEAR(TODAY()),5,3)","v":"2017-05-03"},"A-12345",{"v":33,"d":"33.00"},"1. kiadás","Kellékek"]
[{"$f":"DATE(YEAR(TODAY()),5,8)","v":"2017-05-08"},"A-12346",{"v":111,"d":"111.00"},"2. kiadás"]
[null,null,{"v":342,"d":"342.00"},"1. kiadás"]
[null,null,{"v":333,"d":"333.00"},"3. kiadás"]
[null,null,{"v":125,"d":"125.00"},"4. kiadás"]
[null,null,{"v":33,"d":"33.00"},"5. kiadás"]
["Összeg",null,{"$f":"SUBTOTAL(109,MájKiad[Összeg])","v":{"v":977,"d":"977.00"}}]

{"sheet":"Jún.","index":7,"n_rows":9,"n_cols":5,"rows_kept":9,"merged":[[0,0,0,2]]}
["JÚNIUSI KIADÁSOK",null,null,"Összesítés","Tippek"]
["Dátum","Rendelésszám","Összeg","Kategória","Leírás"]
[{"$f":"DATE(YEAR(TODAY()),6,7)","v":"2017-06-07"},"A-12345",{"v":201,"d":"201.00"},"1. kiadás","Kellékek"]
[{"$f":"DATE(YEAR(TODAY()),6,8)","v":"2017-06-08"},"A-12346",{"v":98,"d":"98.00"},"2. kiadás"]
[null,null,{"v":342,"d":"342.00"},"5. kiadás"]
[null,null,{"v":122,"d":"122.00"},"3. kiadás"]
[null,null,{"v":187,"d":"187.00"},"4. kiadás"]
[null,null,{"v":99,"d":"99.00"},"5. kiadás"]
["Összeg",null,{"$f":"SUBTOTAL(109,JúnKiad[Összeg])","v":{"v":1049,"d":"1,049.00"}}]

{"sheet":"Júl.","index":8,"n_rows":9,"n_cols":5,"rows_kept":9,"merged":[[0,0,0,2]]}
["JÚLIUSI KIADÁSOK",null,null,"Összesítés","Tippek"]
["Dátum","Rendelésszám","Összeg","Kategória","Leírás"]
[{"$f":"DATE(YEAR(TODAY()),7,9)","v":"2017-07-09"},"A-12345",null,"1. kiadás","Kellékek"]
[{"$f":"DATE(YEAR(TODAY()),7,14)","v":"2017-07-14"},"A-12346",null,"2. kiadás"]
[{"$nulls":3},"2. kiadás"]
[{"$nulls":3},"3. kiadás"]
[{"$nulls":3},"4. kiadás"]
[{"$nulls":3},"5. kiadás"]
["Összeg",null,{"$f":"SUBTOTAL(109,JúlKiad[Összeg])","v":{"v":0,"d":"0.00"}}]

{"sheet":"Sug.","index":9,"n_rows":9,"n_cols":5,"rows_kept":9,"merged":[[0,0,0,2]]}
["AUGUSZTUSI KIADÁSOK",null,null,"Összesítés","Tippek"]
["Dátum","Rendelésszám","Összeg","Kategória","Leírás"]
[{"$f":"DATE(YEAR(TODAY()),8,8)","v":"2017-08-08"},"A-12345",null,"1. kiadás","Kellékek"]
[{"$f":"DATE(YEAR(TODAY()),8,9)","v":"2017-08-09"},"A-12346",null,"2. kiadás"]
[{"$nulls":3},"2. kiadás"]
[{"$nulls":3},"3. kiadás"]
[{"$nulls":3},"4. kiadás"]
[{"$nulls":3},"5. kiadás"]
["Összeg",null,{"$f":"SUBTOTAL(109,AugKiad[Összeg])","v":{"v":0,"d":"0.00"}}]

{"sheet":"Szept.","index":10,"n_rows":9,"n_cols":5,"rows_kept":9,"merged":[[0,0,0,2]]}
["SZEPTEMBERI KIADÁSOK",null,null,"Összesítés","Tippek"]
["Dátum","Rendelésszám","Összeg","Kategória","Leírás"]
[{"$f":"DATE(YEAR(TODAY()),9,9)","v":"2017-09-09"},"A-12345",null,"1. kiadás","Kellékek"]
[{"$f":"DATE(YEAR(TODAY()),9,15)","v":"2017-09-15"},"A-12346",null,"2. kiadás"]
[{"$nulls":3},"2. kiadás"]
[{"$nulls":3},"3. kiadás"]
[{"$nulls":3},"4. kiadás"]
[{"$nulls":3},"5. kiadás"]
["Összeg",null,{"$f":"SUBTOTAL(109,SzeptKiad[Összeg])","v":{"v":0,"d":"0.00"}}]

{"sheet":"Okt.","index":11,"n_rows":9,"n_cols":5,"rows_kept":9,"merged":[[0,0,0,2]]}
["OKTÓBERI KIADÁSOK",null,null,"Összesítés","Tippek"]
["Dátum","Rendelésszám","Összeg","Kategória","Leírás"]
[{"$f":"DATE(YEAR(TODAY()),10,10)","v":"2017-10-10"},"A-12345",null,"1. kiadás","Kellékek"]
[{"$f":"DATE(YEAR(TODAY()),10,21)","v":"2017-10-21"},"A-12346",null,"2. kiadás"]
[{"$nulls":3},"2. kiadás"]
[{"$nulls":3},"3. kiadás"]
[{"$nulls":3},"4. kiadás"]
[{"$nulls":3},"5. kiadás"]
["Összeg",null,{"$f":"SUBTOTAL(109,OktKiad[Összeg])","v":{"v":0,"d":"0.00"}}]

{"sheet":"Nov.","index":12,"n_rows":9,"n_cols":5,"rows_kept":9,"merged":[[0,0,0,2]]}
["NOVEMBERI KIADÁSOK",null,null,"Összesítés","Tippek"]
["Dátum","Rendelésszám","Összeg","Kategória","Leírás"]
[{"$f":"DATE(YEAR(TODAY()),11,14)","v":"2017-11-14"},"A-12345",null,"1. kiadás","Kellékek"]
[{"$f":"DATE(YEAR(TODAY()),11,21)","v":"2017-11-21"},"A-12346",null,"2. kiadás"]
[{"$nulls":3},"2. kiadás"]
[{"$nulls":3},"3. kiadás"]
[{"$nulls":3},"4. kiadás"]
[{"$nulls":3},"5. kiadás"]
["Összeg",null,{"$f":"SUBTOTAL(109,NovKiad[Összeg])","v":{"v":0,"d":"0.00"}}]

{"sheet":"Dec.","index":13,"n_rows":9,"n_cols":5,"rows_kept":9,"merged":[[0,0,0,2]]}
["DECEMBERI KIADÁSOK",null,null,"Összesítés","Tippek"]
["Dátum","Rendelésszám","Összeg","Kategória","Leírás"]
[{"$f":"DATE(YEAR(TODAY()),12,2)","v":"2017-12-02"},"A-12345",{"v":201,"d":"201.00"},"1. kiadás","Kellékek"]
[{"$f":"DATE(YEAR(TODAY()),12,24)","v":"2017-12-24"},"A-12346",{"v":98,"d":"98.00"},"2. kiadás"]
[null,null,{"v":342,"d":"342.00"},"2. kiadás"]
[null,null,{"v":122,"d":"122.00"},"3. kiadás"]
[null,null,{"v":187,"d":"187.00"},"4. kiadás"]
[null,null,{"v":99,"d":"99.00"},"5. kiadás"]
["Összeg",null,{"$f":"SUBTOTAL(109,DecKiad[Összeg])","v":{"v":1049,"d":"1,049.00"}}]